[Event "Early-Titled-Tuesday-Blitz-January-16-2024"]
[Site "Chess.com"]
[Date "2024.01.16"]
[Round "11"]
[White "MasterofMasters2006"]
[Black "N4700000"]
[Result "0-1"]
[WhiteElo "2249"]
[BlackElo "2420"]
[TimeControl "180+1"]
[EndTime "10:10:33 PST"]
[Termination "N4700000 won by resignation"]

1. d4 {[%clk 0:03:00.9]} 1... e6 {[%clk 0:02:58.1]} 2. c4 {[%clk 0:02:56.6]}
2... b6 {[%clk 0:02:54.9]} 3. Nf3 {[%clk 0:02:52.3]} 3... Bb7 {[%clk 0:02:54.2]}
4. a3 {[%clk 0:02:52.1]} 4... Nf6 {[%clk 0:02:48.3]} 5. Nc3 {[%clk 0:02:51.8]}
5... g6 {[%clk 0:02:32.8]} 6. d5 {[%clk 0:02:49]} 6... Bg7 {[%clk 0:02:31]} 7.
e4 {[%clk 0:02:47.3]} 7... O-O {[%clk 0:02:27.2]} 8. Be2 {[%clk 0:02:46.5]} 8...
d6 {[%clk 0:02:23.5]} 9. O-O {[%clk 0:02:45.7]} 9... Nbd7 {[%clk 0:02:22.4]} 10.
h3 {[%clk 0:02:28.9]} 10... Nc5 {[%clk 0:02:17.9]} 11. Qc2 {[%clk 0:02:27.1]}
11... a5 {[%clk 0:02:16.8]} 12. Be3 {[%clk 0:02:25.7]} 12... Re8 {[%clk
0:02:00.4]} 13. b4 {[%clk 0:02:13.1]} 13... axb4 {[%clk 0:01:58]} 14. axb4
{[%clk 0:02:14]} 14... Rxa1 {[%clk 0:01:56.8]} 15. Rxa1 {[%clk 0:02:14.9]} 15...
Ncxe4 {[%clk 0:01:54.6]} 16. Nxe4 {[%clk 0:02:12.6]} 16... Nxe4 {[%clk 0:01:54]}
17. Bd4 {[%clk 0:02:06.1]} 17... exd5 {[%clk 0:01:39]} 18. cxd5 {[%clk
0:02:02.4]} 18... Bxd5 {[%clk 0:01:30.6]} 19. Bxg7 {[%clk 0:01:51.5]} 19... Kxg7
{[%clk 0:01:31.5]} 20. Rd1 {[%clk 0:01:44.2]} 20... Bb7 {[%clk 0:01:26.4]} 21.
Bb5 {[%clk 0:01:41.1]} 21... Re7 {[%clk 0:01:13.4]} 22. Bc6 {[%clk 0:01:36.4]}
22... Bxc6 {[%clk 0:01:01.7]} 23. Qxc6 {[%clk 0:01:37.3]} 23... Qe8 {[%clk
0:00:59.6]} 24. Qc2 {[%clk 0:01:32.7]} 24... Qb5 {[%clk 0:00:54.3]} 25. Nd4
{[%clk 0:01:26.7]} 25... Qxb4 {[%clk 0:00:25.4]} 26. Nc6 {[%clk 0:01:26.8]}
26... Qc3 {[%clk 0:00:25.4]} 27. Qa4 {[%clk 0:01:18.5]} 27... Re6 {[%clk
0:00:20.4]} 28. Nd8 {[%clk 0:01:09.2]} 28... Re5 {[%clk 0:00:20]} 29. Nc6 {[%clk
0:01:08.8]} 29... Rc5 {[%clk 0:00:16.3]} 30. Ne7 {[%clk 0:01:04]} 30... Qc2
{[%clk 0:00:16.1]} 31. Qd4+ {[%clk 0:01:01.3]} 31... f6 {[%clk 0:00:15.4]} 32.
Re1 {[%clk 0:00:58.1]} 32... Re5 {[%clk 0:00:13.8]} 33. Nd5 {[%clk 0:00:52.7]}
33... Qc5 {[%clk 0:00:13.3]} 34. Rxe4 {[%clk 0:00:43.3]} 34... Qxd5 {[%clk
0:00:13.3]} 35. Qxd5 {[%clk 0:00:41.8]} 35... Rxd5 {[%clk 0:00:13.5]} 36. Re7+
{[%clk 0:00:42.5]} 36... Kf8 {[%clk 0:00:12.7]} 37. Rxc7 {[%clk 0:00:43.4]}
37... h5 {[%clk 0:00:12.7]} 38. Rc6 {[%clk 0:00:41.9]} 38... b5 {[%clk
0:00:12.6]} 39. Rb6 {[%clk 0:00:41.4]} 39... Ke7 {[%clk 0:00:12.8]} 40. Rb7+
{[%clk 0:00:41.9]} 40... Ke6 {[%clk 0:00:13.1]} 41. Kh2 {[%clk 0:00:42.2]} 41...
h4 {[%clk 0:00:13]} 42. Kg1 {[%clk 0:00:40.7]} 42... Rd1+ {[%clk 0:00:12.3]} 43.
Kh2 {[%clk 0:00:40.6]} 43... g5 {[%clk 0:00:12.7]} 44. g3 {[%clk 0:00:40.2]}
44... hxg3+ {[%clk 0:00:12.6]} 45. Kxg3 {[%clk 0:00:39.7]} 45... Rb1 {[%clk
0:00:12.6]} 46. f3 {[%clk 0:00:38.2]} 46... Rb2 {[%clk 0:00:12.3]} 47. h4 {[%clk
0:00:38.4]} 47... gxh4+ {[%clk 0:00:12.4]} 48. Kg4 {[%clk 0:00:39.3]} 48... Ke5
{[%clk 0:00:12]} 49. Kxh4 {[%clk 0:00:39.6]} 49... Kf4 {[%clk 0:00:12.2]} 50.
Kh3 {[%clk 0:00:39.8]} 50... f5 {[%clk 0:00:12.2]} 51. Rd7 {[%clk 0:00:36.6]}
51... Rd2 {[%clk 0:00:11]} 52. Rb7 {[%clk 0:00:35.6]} 52... Kxf3 {[%clk
0:00:10]} 53. Rxb5 {[%clk 0:00:35.4]} 53... d5 {[%clk 0:00:10.1]} 54. Rb8 {[%clk
0:00:29.4]} 54... d4 {[%clk 0:00:09.8]} 55. Rd8 {[%clk 0:00:28.6]} 55... f4
{[%clk 0:00:09.6]} 56. Rd7 {[%clk 0:00:27.4]} 56... d3 {[%clk 0:00:09.6]} 57.
Rd8 {[%clk 0:00:27.5]} 57... Rd1 {[%clk 0:00:09.8]} 58. Kh2 {[%clk 0:00:27.9]}
58... Ke2 {[%clk 0:00:08.8]} 59. Re8+ {[%clk 0:00:26.4]} 59... Kd2 {[%clk
0:00:08.9]} 60. Kg2 {[%clk 0:00:26.3]} 60... Re1 {[%clk 0:00:09.1]} 61. Rd8
{[%clk 0:00:24.4]} 61... Re3 {[%clk 0:00:08.8]} 62. Kf2 {[%clk 0:00:22.3]} 62...
Kc2 {[%clk 0:00:08.6]} 63. Rc8+ {[%clk 0:00:22.5]} 63... Kd1 {[%clk 0:00:08.8]}
64. Ra8 {[%clk 0:00:17.7]} 64... d2 {[%clk 0:00:09]} 65. Ra1+ {[%clk 0:00:17.3]}
65... Kc2 {[%clk 0:00:09.4]} 66. Ra2+ {[%clk 0:00:17.8]} 66... Kc1 {[%clk
0:00:09.6]} 67. Ra1+ {[%clk 0:00:16.1]} 67... Kb2 {[%clk 0:00:09.9]} 68. Rd1
{[%clk 0:00:16.6]} 68... Kc2 {[%clk 0:00:10.1]} 0-1

[Event "Early-Titled-Tuesday-Blitz-January-16-2024"]
[Site "Chess.com"]
[Date "2024.01.16"]
[Round "11"]
[White "RCone"]
[Black "Zampronha1971"]
[Result "1-0"]
[WhiteElo "2430"]
[BlackElo "2337"]
[TimeControl "180+1"]
[EndTime "10:10:33 PST"]
[Termination "RCone won on time"]

1. e4 {[%clk 0:03:00.9]} 1... c5 {[%clk 0:02:54.5]} 2. Nc3 {[%clk 0:03:00.3]}
2... e6 {[%clk 0:02:54.5]} 3. Nge2 {[%clk 0:02:58.9]} 3... Nc6 {[%clk 0:02:55]}
4. g3 {[%clk 0:02:56.7]} 4... g6 {[%clk 0:02:52.9]} 5. Bg2 {[%clk 0:02:55.5]}
5... Bg7 {[%clk 0:02:53.1]} 6. O-O {[%clk 0:02:55.7]} 6... Nge7 {[%clk
0:02:53.6]} 7. f4 {[%clk 0:02:55.7]} 7... d6 {[%clk 0:02:53.1]} 8. d3 {[%clk
0:02:53.5]} 8... O-O {[%clk 0:02:52.8]} 9. g4 {[%clk 0:02:30.9]} 9... f5 {[%clk
0:02:50.5]} 10. Ng3 {[%clk 0:01:55]} 10... Nd4 {[%clk 0:02:37.2]} 11. gxf5
{[%clk 0:01:39.8]} 11... exf5 {[%clk 0:02:36.9]} 12. exf5 {[%clk 0:01:32.1]}
12... Nexf5 {[%clk 0:02:36.9]} 13. Nd5 {[%clk 0:01:18.3]} 13... Be6 {[%clk
0:02:19.9]} 14. c3 {[%clk 0:01:17.9]} 14... Nc6 {[%clk 0:02:14.1]} 15. Nxf5
{[%clk 0:01:09.6]} 15... Bxf5 {[%clk 0:02:13.5]} 16. Qf3 {[%clk 0:01:02.9]}
16... Qd7 {[%clk 0:02:12.7]} 17. Bd2 {[%clk 0:01:01.9]} 17... Rae8 {[%clk
0:02:03.8]} 18. Rae1 {[%clk 0:01:01.2]} 18... Kh8 {[%clk 0:01:57.5]} 19. a3
{[%clk 0:00:54.1]} 19... Rxe1 {[%clk 0:01:22.7]} 20. Rxe1 {[%clk 0:00:55]} 20...
Re8 {[%clk 0:01:22.9]} 21. Rxe8+ {[%clk 0:00:54]} 21... Qxe8 {[%clk 0:01:23.8]}
22. Bf1 {[%clk 0:00:43]} 22... h6 {[%clk 0:01:15.6]} 23. Kf2 {[%clk 0:00:41]}
23... Qf7 {[%clk 0:01:11]} 24. Bg2 {[%clk 0:00:36.1]} 24... Be6 {[%clk
0:01:10.7]} 25. Ne3 {[%clk 0:00:30.4]} 25... Bf6 {[%clk 0:01:01.3]} 26. Kg1
{[%clk 0:00:27.1]} 26... Bg7 {[%clk 0:01:00.7]} 27. Be1 {[%clk 0:00:16.3]} 27...
Bd7 {[%clk 0:01:00.5]} 28. Bg3 {[%clk 0:00:16.6]} 28... b6 {[%clk 0:00:59.3]}
29. Qd5 {[%clk 0:00:15.6]} 29... Qxd5 {[%clk 0:00:57.8]} 30. Nxd5 {[%clk
0:00:16.3]} 30... Kg8 {[%clk 0:00:47.6]} 31. Kf2 {[%clk 0:00:16.3]} 31... Kf7
{[%clk 0:00:48]} 32. Ke3 {[%clk 0:00:16.4]} 32... Ne7 {[%clk 0:00:46.3]} 33.
Nxe7 {[%clk 0:00:15.3]} 33... Kxe7 {[%clk 0:00:47.2]} 34. Bd5 {[%clk 0:00:13.4]}
34... Bf5 {[%clk 0:00:47.3]} 35. d4 {[%clk 0:00:12.7]} 35... cxd4+ {[%clk
0:00:46.3]} 36. cxd4 {[%clk 0:00:13.6]} 36... Be6 {[%clk 0:00:45.3]} 37. Be4
{[%clk 0:00:13.1]} 37... Bf5 {[%clk 0:00:42.8]} 38. Bd5 {[%clk 0:00:13.3]} 38...
Kd7 {[%clk 0:00:34.8]} 39. Bh4 {[%clk 0:00:11.5]} 39... Bf8 {[%clk 0:00:32.7]}
40. Bf6 {[%clk 0:00:11.1]} 40... Be7 {[%clk 0:00:29.8]} 41. Bg7 {[%clk
0:00:11.2]} 41... h5 {[%clk 0:00:29.1]} 42. Bf7 {[%clk 0:00:10.5]} 42... Kc6
{[%clk 0:00:21.1]} 43. b4 {[%clk 0:00:09.8]} 43... Kb5 {[%clk 0:00:20.7]} 44.
Bb3 {[%clk 0:00:08.3]} 44... a5 {[%clk 0:00:14.9]} 45. bxa5 {[%clk 0:00:08.5]}
45... bxa5 {[%clk 0:00:15.8]} 46. Kd2 {[%clk 0:00:05]} 46... Kc6 {[%clk
0:00:15]} 47. Kc3 {[%clk 0:00:05]} 47... d5 {[%clk 0:00:14.4]} 48. Ba4+ {[%clk
0:00:04.7]} 48... Kb6 {[%clk 0:00:12.8]} 49. Be8 {[%clk 0:00:05.6]} 49... Bxa3
{[%clk 0:00:11.8]} 50. Be5 {[%clk 0:00:05]} 50... Bb4+ {[%clk 0:00:12.2]} 51.
Kb3 {[%clk 0:00:04.9]} 51... Bd3 {[%clk 0:00:10.5]} 52. Bf6 {[%clk 0:00:04.3]}
52... Bc4+ {[%clk 0:00:05.1]} 53. Ka4 {[%clk 0:00:04.9]} 53... Bd3 {[%clk
0:00:05.6]} 54. Bd8+ {[%clk 0:00:04.7]} 54... Kb7 {[%clk 0:00:04.4]} 55. Bxa5
{[%clk 0:00:04.1]} 55... Bxa5 {[%clk 0:00:01.9]} 56. Kxa5 {[%clk 0:00:05]} 56...
Bf5 {[%clk 0:00:01.9]} 57. Kb5 {[%clk 0:00:04.1]} 57... Kc7 {[%clk 0:00:02.8]}
58. Kc5 {[%clk 0:00:04.4]} 58... Be4 {[%clk 0:00:02.8]} 59. Bf7 {[%clk
0:00:03.9]} 59... Kd8 {[%clk 0:00:03.2]} 60. Bxd5 {[%clk 0:00:04.5]} 60... Ke7
{[%clk 0:00:04]} 61. Bxe4 {[%clk 0:00:04.5]} 1-0

[Event "Early-Titled-Tuesday-Blitz-January-16-2024"]
[Site "Chess.com"]
[Date "2024.01.16"]
[Round "11"]
[White "JCVanDamme10"]
[Black "Darkbluelord"]
[Result "1-0"]
[WhiteElo "2308"]
[BlackElo "2165"]
[TimeControl "180+1"]
[EndTime "10:10:35 PST"]
[Termination "JCVanDamme10 won on time"]

1. e4 {[%clk 0:03:00.9]} 1... c5 {[%clk 0:02:59.7]} 2. Nf3 {[%clk 0:03:01]} 2...
d6 {[%clk 0:02:59.3]} 3. d4 {[%clk 0:03:01.4]} 3... cxd4 {[%clk 0:03:00.2]} 4.
Nxd4 {[%clk 0:03:01.8]} 4... Nf6 {[%clk 0:03:00.9]} 5. Nc3 {[%clk 0:03:02.3]}
5... g6 {[%clk 0:03:01.5]} 6. Be3 {[%clk 0:03:02.2]} 6... Bg7 {[%clk 0:03:02]}
7. f3 {[%clk 0:03:02.1]} 7... O-O {[%clk 0:03:02.5]} 8. Qd2 {[%clk 0:03:02.7]}
8... Nc6 {[%clk 0:03:03.2]} 9. Bc4 {[%clk 0:03:03]} 9... Bd7 {[%clk 0:03:02.8]}
10. O-O-O {[%clk 0:02:58.2]} 10... Ne5 {[%clk 0:03:03]} 11. Bb3 {[%clk
0:02:57.7]} 11... Qa5 {[%clk 0:03:03.6]} 12. Kb1 {[%clk 0:02:54.3]} 12... Rfc8
{[%clk 0:03:03.8]} 13. g4 {[%clk 0:02:42.1]} 13... b5 {[%clk 0:03:03.5]} 14. g5
{[%clk 0:02:39.6]} 14... b4 {[%clk 0:02:54]} 15. Nd5 {[%clk 0:02:31.7]} 15...
Nxd5 {[%clk 0:02:54]} 16. Bxd5 {[%clk 0:02:32.3]} 16... Rab8 {[%clk 0:02:53.3]}
17. Nb3 {[%clk 0:02:26.6]} 17... Qa4 {[%clk 0:02:25.2]} 18. f4 {[%clk 0:02:20]}
18... Nc4 {[%clk 0:02:03.3]} 19. Bxc4 {[%clk 0:02:18.3]} 19... Rxc4 {[%clk
0:02:04.2]} 20. Bd4 {[%clk 0:02:15]} 20... e5 {[%clk 0:01:43.6]} 21. fxe5 {[%clk
0:02:10.2]} 21... dxe5 {[%clk 0:01:32.7]} 22. Bxa7 {[%clk 0:01:50.5]} 22... Qxa7
{[%clk 0:01:31.1]} 23. Qxd7 {[%clk 0:01:50.3]} 23... Qf2 {[%clk 0:01:20.3]} 24.
Rd2 {[%clk 0:01:45.3]} 24... Qf3 {[%clk 0:01:11.4]} 25. Rhd1 {[%clk 0:01:34.4]}
25... Qxe4 {[%clk 0:01:04.4]} 26. Qd5 {[%clk 0:01:28.7]} 26... Qxd5 {[%clk
0:00:59.1]} 27. Rxd5 {[%clk 0:01:28.5]} 27... Rbc8 {[%clk 0:01:00]} 28. Rd8+
{[%clk 0:01:28.3]} 28... Bf8 {[%clk 0:00:53.8]} 29. Rxc8 {[%clk 0:01:27.8]}
29... Rxc8 {[%clk 0:00:54.7]} 30. Rd5 {[%clk 0:01:19.4]} 30... Rc4 {[%clk
0:00:39.7]} 31. Rxe5 {[%clk 0:01:12.2]} 31... Rh4 {[%clk 0:00:39.8]} 32. Re2
{[%clk 0:00:56.5]} 32... Rg4 {[%clk 0:00:39.5]} 33. c3 {[%clk 0:00:51.3]} 33...
Rxg5 {[%clk 0:00:38.5]} 34. cxb4 {[%clk 0:00:50.8]} 34... Bxb4 {[%clk
0:00:38.7]} 35. a3 {[%clk 0:00:51.3]} 35... Bd6 {[%clk 0:00:36.6]} 36. Nd4
{[%clk 0:00:49.3]} 36... Rd5 {[%clk 0:00:30.2]} 37. Nf3 {[%clk 0:00:44.1]} 37...
Rd3 {[%clk 0:00:23]} 38. Ng5 {[%clk 0:00:35.6]} 38... h6 {[%clk 0:00:19.4]} 39.
Ne4 {[%clk 0:00:35.3]} 39... Bf4 {[%clk 0:00:17.9]} 40. Kc2 {[%clk 0:00:34.8]}
40... Rh3 {[%clk 0:00:16.9]} 41. b4 {[%clk 0:00:31.7]} 41... Bxh2 {[%clk
0:00:16.8]} 42. a4 {[%clk 0:00:30.6]} 42... Bc7 {[%clk 0:00:13.7]} 43. Nc3
{[%clk 0:00:28.6]} 43... Rh4 {[%clk 0:00:12]} 44. b5 {[%clk 0:00:27.5]} 44...
Ba5 {[%clk 0:00:09.4]} 45. Re4 {[%clk 0:00:18.1]} 45... Rh2+ {[%clk 0:00:07.9]}
46. Kb3 {[%clk 0:00:18.3]} 46... Rh3 {[%clk 0:00:08.3]} 47. Rc4 {[%clk
0:00:18.9]} 47... g5 {[%clk 0:00:07.9]} 48. Kb2 {[%clk 0:00:14.2]} 48... h5
{[%clk 0:00:06.6]} 49. Nd5 {[%clk 0:00:13.1]} 49... g4 {[%clk 0:00:03.6]} 50.
Nf6+ {[%clk 0:00:10.9]} 50... Kg7 {[%clk 0:00:03.7]} 51. Nxh5+ {[%clk
0:00:11.4]} 51... Rxh5 {[%clk 0:00:03.5]} 52. Rxg4+ {[%clk 0:00:12]} 52... Kf6
{[%clk 0:00:04.2]} 53. Kb3 {[%clk 0:00:11.3]} 53... Rh3+ {[%clk 0:00:03.9]} 54.
Kc4 {[%clk 0:00:10.7]} 54... Ra3 {[%clk 0:00:04.6]} 55. Kd5 {[%clk 0:00:10.7]}
55... Rd3+ {[%clk 0:00:03.8]} 56. Kc6 {[%clk 0:00:10.2]} 56... Rc3+ {[%clk
0:00:03.5]} 57. Kb7 {[%clk 0:00:09.8]} 57... Kf5 {[%clk 0:00:03.5]} 58. Rg7
{[%clk 0:00:08.6]} 58... f6 {[%clk 0:00:03.3]} 59. Ka6 {[%clk 0:00:06.6]} 59...
Bb4 {[%clk 0:00:03.5]} 60. b6 {[%clk 0:00:06.6]} 60... Rc6 {[%clk 0:00:03.6]}
61. Kb5 {[%clk 0:00:05.7]} 1-0

[Event "Early-Titled-Tuesday-Blitz-January-16-2024"]
[Site "Chess.com"]
[Date "2024.01.16"]
[Round "11"]
[White "Hikaru"]
[Black "FormerProdigy"]
[Result "1-0"]
[WhiteElo "3231"]
[BlackElo "3022"]
[TimeControl "180+1"]
[EndTime "10:10:36 PST"]
[Termination "Hikaru won on time"]

1. Nf3 {[%clk 0:03:00.9]} 1... d5 {[%clk 0:02:59.5]} 2. b3 {[%clk 0:02:58.2]}
2... Nf6 {[%clk 0:02:58.6]} 3. Bb2 {[%clk 0:02:56.9]} 3... Bg4 {[%clk
0:02:56.5]} 4. e3 {[%clk 0:02:54.3]} 4... e6 {[%clk 0:02:56.2]} 5. h3 {[%clk
0:02:51.3]} 5... Bh5 {[%clk 0:02:52.3]} 6. d3 {[%clk 0:02:50.2]} 6... c5 {[%clk
0:02:46.4]} 7. g4 {[%clk 0:02:49.8]} 7... Bg6 {[%clk 0:02:46.3]} 8. Nh4 {[%clk
0:02:50.3]} 8... Nc6 {[%clk 0:02:41]} 9. Nd2 {[%clk 0:02:49.4]} 9... d4 {[%clk
0:02:26.4]} 10. Nxg6 {[%clk 0:02:46.9]} 10... hxg6 {[%clk 0:02:27.3]} 11. Bg2
{[%clk 0:02:46]} 11... Nd5 {[%clk 0:02:27.7]} 12. Qe2 {[%clk 0:02:40.4]} 12...
Be7 {[%clk 0:02:14]} 13. O-O-O {[%clk 0:02:23]} 13... Ncb4 {[%clk 0:01:51.8]}
14. Bxd5 {[%clk 0:02:08.3]} 14... Qxd5 {[%clk 0:01:43.3]} 15. Kb1 {[%clk
0:02:03.9]} 15... O-O-O {[%clk 0:01:29.8]} 16. f4 {[%clk 0:01:50]} 16... dxe3
{[%clk 0:01:15]} 17. Qxe3 {[%clk 0:01:47.6]} 17... Rh7 {[%clk 0:01:05]} 18. Rhf1
{[%clk 0:01:36.2]} 18... Nc6 {[%clk 0:01:00.4]} 19. Ne4 {[%clk 0:01:25]} 19...
b6 {[%clk 0:00:55.8]} 20. Nc3 {[%clk 0:01:11.5]} 20... Qd7 {[%clk 0:00:52.9]}
21. Ne2 {[%clk 0:01:11.1]} 21... Bf6 {[%clk 0:00:52]} 22. Bxf6 {[%clk
0:01:10.3]} 22... gxf6 {[%clk 0:00:52.9]} 23. f5 {[%clk 0:01:10.8]} 23... exf5
{[%clk 0:00:33.8]} 24. gxf5 {[%clk 0:01:11.7]} 24... g5 {[%clk 0:00:34.4]} 25.
Nc3 {[%clk 0:01:04.2]} 25... Rdh8 {[%clk 0:00:31.3]} 26. Ne4 {[%clk 0:01:02.6]}
26... Rxh3 {[%clk 0:00:31.8]} 27. Qf2 {[%clk 0:00:59.4]} 27... Qd4 {[%clk
0:00:29.7]} 28. Qxd4 {[%clk 0:00:54.2]} 28... Nxd4 {[%clk 0:00:30.6]} 29. Nxf6
{[%clk 0:00:55]} 29... Rf3 {[%clk 0:00:25]} 30. c3 {[%clk 0:00:38.3]} 30... Rxf1
{[%clk 0:00:24.9]} 31. Rxf1 {[%clk 0:00:39.2]} 31... Ne2 {[%clk 0:00:22.4]} 32.
Ne4 {[%clk 0:00:38.7]} 32... Rh2 {[%clk 0:00:17.8]} 33. Nxg5 {[%clk 0:00:19.2]}
33... Nxc3+ {[%clk 0:00:17.8]} 34. Kc1 {[%clk 0:00:19.9]} 34... Nxa2+ {[%clk
0:00:18]} 35. Kb1 {[%clk 0:00:20.5]} 35... Nc3+ {[%clk 0:00:18.7]} 36. Kc1
{[%clk 0:00:21.2]} 36... f6 {[%clk 0:00:17.3]} 37. Ne6 {[%clk 0:00:19.1]} 37...
Ra2 {[%clk 0:00:16.1]} 38. Rf3 {[%clk 0:00:18.4]} 38... Kd7 {[%clk 0:00:15.4]}
39. Nf4 {[%clk 0:00:07.4]} 39... Ne2+ {[%clk 0:00:14.5]} 40. Kb1 {[%clk
0:00:07.5]} 40... Nc3+ {[%clk 0:00:12.6]} 41. Kc1 {[%clk 0:00:07.9]} 41... Ne2+
{[%clk 0:00:13.5]} 42. Kb1 {[%clk 0:00:08.4]} 42... Rd2 {[%clk 0:00:13.5]} 43.
Nd5 {[%clk 0:00:07.9]} 43... Nd4 {[%clk 0:00:13]} 44. Rh3 {[%clk 0:00:08.1]}
44... Nxf5 {[%clk 0:00:11.6]} 45. Nxf6+ {[%clk 0:00:08.8]} 45... Kc6 {[%clk
0:00:11.7]} 46. Ne4 {[%clk 0:00:09.7]} 46... Re2 {[%clk 0:00:10]} 47. Nc3 {[%clk
0:00:07]} 47... Re3 {[%clk 0:00:10.2]} 48. Rxe3 {[%clk 0:00:04.8]} 48... Nxe3
{[%clk 0:00:11.1]} 49. Ne2 {[%clk 0:00:05.3]} 49... Kb5 {[%clk 0:00:09.7]} 50.
Kb2 {[%clk 0:00:04.7]} 50... Nd5 {[%clk 0:00:09]} 51. Ng3 {[%clk 0:00:03.6]}
51... Kb4 {[%clk 0:00:06.9]} 52. Ne4 {[%clk 0:00:03.4]} 52... Nf4 {[%clk
0:00:06.5]} 53. Kc2 {[%clk 0:00:03.9]} 53... Ne6 {[%clk 0:00:06.1]} 54. Kb2
{[%clk 0:00:04.2]} 54... Nd4 {[%clk 0:00:06.8]} 55. Nc3 {[%clk 0:00:04.4]} 55...
a6 {[%clk 0:00:02.6]} 56. Nd5+ {[%clk 0:00:05.3]} 56... Ka5 {[%clk 0:00:02.9]}
57. Kc3 {[%clk 0:00:05.5]} 57... b5 {[%clk 0:00:02.3]} 58. b4+ {[%clk
0:00:05.4]} 58... Ka4 {[%clk 0:00:02.5]} 59. bxc5 {[%clk 0:00:05.7]} 59... Nc6
{[%clk 0:00:03]} 60. Nb6+ {[%clk 0:00:06]} 60... Ka3 {[%clk 0:00:03]} 61. d4
{[%clk 0:00:06.5]} 61... b4+ {[%clk 0:00:03.4]} 62. Kd3 {[%clk 0:00:07.2]} 62...
b3 {[%clk 0:00:03.6]} 63. Kc3 {[%clk 0:00:03.7]} 63... b2 {[%clk 0:00:01.7]} 64.
Nc4+ {[%clk 0:00:03.9]} 64... Ka4 {[%clk 0:00:01.7]} 65. Nxb2+ {[%clk
0:00:04.7]} 65... Kb5 {[%clk 0:00:01.9]} 66. Nd3 {[%clk 0:00:05.6]} 1-0

[Event "Early-Titled-Tuesday-Blitz-January-16-2024"]
[Site "Chess.com"]
[Date "2024.01.16"]
[Round "11"]
[White "SashaKuzhilniy"]
[Black "FARIZA2018"]
[Result "1/2-1/2"]
[WhiteElo "2655"]
[BlackElo "2521"]
[TimeControl "180+1"]
[EndTime "10:10:38 PST"]
[Termination "Game drawn - insufficient material"]

1. e3 {[%clk 0:03:00.9]} 1... e5 {[%clk 0:02:59.9]} 2. d4 {[%clk 0:03:00.6]}
2... exd4 {[%clk 0:02:59.2]} 3. exd4 {[%clk 0:03:01.5]} 3... d5 {[%clk
0:02:59.5]} 4. Nf3 {[%clk 0:03:01]} 4... Nf6 {[%clk 0:02:59.6]} 5. Bd3 {[%clk
0:03:01.5]} 5... Be7 {[%clk 0:02:59.5]} 6. O-O {[%clk 0:03:00.6]} 6... O-O
{[%clk 0:03:00.2]} 7. h3 {[%clk 0:03:01.1]} 7... h6 {[%clk 0:02:59.1]} 8. Ne5
{[%clk 0:02:53.3]} 8... Re8 {[%clk 0:02:55.2]} 9. f4 {[%clk 0:02:49.7]} 9... c5
{[%clk 0:02:53.1]} 10. c3 {[%clk 0:02:43.3]} 10... Nc6 {[%clk 0:02:52.4]} 11.
Be3 {[%clk 0:02:40.8]} 11... Qb6 {[%clk 0:02:48.7]} 12. Rf2 {[%clk 0:02:26]}
12... Bd7 {[%clk 0:02:23.6]} 13. g4 {[%clk 0:02:20.3]} 13... Rad8 {[%clk
0:02:15.8]} 14. Nd2 {[%clk 0:01:54.5]} 14... cxd4 {[%clk 0:02:09]} 15. cxd4
{[%clk 0:01:53.6]} 15... Bd6 {[%clk 0:01:55.7]} 16. g5 {[%clk 0:01:35.2]} 16...
Ne4 {[%clk 0:01:35.2]} 17. Bxe4 {[%clk 0:01:11.8]} 17... dxe4 {[%clk 0:01:34.9]}
18. gxh6 {[%clk 0:01:08.3]} 18... Bxe5 {[%clk 0:01:20.2]} 19. fxe5 {[%clk
0:01:05.3]} 19... Nxe5 {[%clk 0:01:13.9]} 20. hxg7 {[%clk 0:00:36.2]} 20... Nf3+
{[%clk 0:00:57]} 21. Nxf3 {[%clk 0:00:21.8]} 21... exf3 {[%clk 0:00:56.3]} 22.
Qxf3 {[%clk 0:00:22.4]} 22... Qg6+ {[%clk 0:00:50]} 23. Rg2 {[%clk 0:00:20.3]}
23... Bc6 {[%clk 0:00:49.1]} 24. Rxg6 {[%clk 0:00:14.1]} 24... Bxf3 {[%clk
0:00:48.4]} 25. Rg3 {[%clk 0:00:14.8]} 25... Rxe3 {[%clk 0:00:46.3]} 26. Kf2
{[%clk 0:00:15.4]} 26... Re2+ {[%clk 0:00:43.4]} 27. Kxf3 {[%clk 0:00:15.6]}
27... Rxb2 {[%clk 0:00:44]} 28. Rd1 {[%clk 0:00:14.5]} 28... Rxa2 {[%clk
0:00:42.4]} 29. Kf4 {[%clk 0:00:11.2]} 29... Ra6 {[%clk 0:00:40.4]} 30. d5
{[%clk 0:00:10.2]} 30... Rad6 {[%clk 0:00:31.9]} 31. Ke5 {[%clk 0:00:08.3]}
31... f6+ {[%clk 0:00:30.6]} 32. Ke4 {[%clk 0:00:08.7]} 32... Re8+ {[%clk
0:00:25.8]} 33. Kd4 {[%clk 0:00:08.6]} 33... Re5 {[%clk 0:00:25.4]} 34. Kc5
{[%clk 0:00:09]} 34... Rd7 {[%clk 0:00:23.8]} 35. h4 {[%clk 0:00:09.2]} 35...
Rxg7 {[%clk 0:00:17.9]} 36. Rxg7+ {[%clk 0:00:07.5]} 36... Kxg7 {[%clk
0:00:18.6]} 37. Kd6 {[%clk 0:00:07.4]} 37... Kf7 {[%clk 0:00:19.2]} 38. Kc7
{[%clk 0:00:07.9]} 38... Re7+ {[%clk 0:00:17.7]} 39. Kc8 {[%clk 0:00:07.8]}
39... Re8+ {[%clk 0:00:16.8]} 40. Kxb7 {[%clk 0:00:07.3]} 40... Re7+ {[%clk
0:00:14.4]} 41. Kc8 {[%clk 0:00:06.1]} 41... Re8+ {[%clk 0:00:14.3]} 42. Kc7
{[%clk 0:00:06.7]} 42... Re7+ {[%clk 0:00:14.6]} 43. Kc6 {[%clk 0:00:07.2]}
43... Re4 {[%clk 0:00:11.5]} 44. d6 {[%clk 0:00:07.2]} 44... Ke8 {[%clk
0:00:11.9]} 45. Ra1 {[%clk 0:00:06.2]} 45... Rc4+ {[%clk 0:00:11.1]} 46. Kd5
{[%clk 0:00:05.3]} 46... Rxh4 {[%clk 0:00:11.5]} 47. Rxa7 {[%clk 0:00:05.6]}
47... Kd8 {[%clk 0:00:10.4]} 48. Ra8+ {[%clk 0:00:02.9]} 48... Kd7 {[%clk
0:00:09.9]} 49. Ra7+ {[%clk 0:00:03.8]} 49... Kd8 {[%clk 0:00:10.2]} 50. Ke6
{[%clk 0:00:03.8]} 50... Re4+ {[%clk 0:00:09.4]} 51. Kxf6 {[%clk 0:00:04.2]}
51... Re1 {[%clk 0:00:10]} 52. Rb7 {[%clk 0:00:03.6]} 52... Re2 {[%clk 0:00:10]}
53. Rh7 {[%clk 0:00:03.3]} 53... Re1 {[%clk 0:00:10.1]} 54. Re7 {[%clk
0:00:02.9]} 54... Rf1+ {[%clk 0:00:10]} 55. Ke6 {[%clk 0:00:01.9]} 55... Re1+
{[%clk 0:00:10.5]} 56. Kf7 {[%clk 0:00:02.5]} 56... Rf1+ {[%clk 0:00:10.7]} 57.
Kg7 {[%clk 0:00:02.9]} 57... Rd1 {[%clk 0:00:10.5]} 58. Kf8 {[%clk 0:00:02.9]}
58... Rxd6 {[%clk 0:00:10]} 59. Rf7 {[%clk 0:00:03.5]} 59... Rd7 {[%clk
0:00:09.9]} 60. Rxd7+ {[%clk 0:00:03.6]} 60... Kxd7 {[%clk 0:00:10.2]} 1/2-1/2